Cogmind - Beta 14 @@@ ROGUE MODE // 2024.09.11 @ 15:31:05 Player: jimmyl Result: Destroyed by Y-45 Defender with Beam Rifle Performance ------------- Evolutions (2) 1000 Regions Visited (4) 800 Robots Destroyed (64) 320 Value Destroyed (1818) 1818 Prototype IDs (0) 0 Alien Tech Used (0) 0 Bonus (179) 179 TOTAL SCORE: 4117 Bonus ------- High Alert Combat Kills 179 Cogmind --------- Core Integrity 0/550 Matter 200/300 Energy 72/100 System Corruption 0% Temperature Cool (9) Movement Core (50) Location -8/Materials Parts ------- > --- POWER (2) -------- (None) > --- PROPULSION (3) --- (None) > --- UTILITY (4) ------ (None) > --- WEAPON (2) ------- (None) > --- INVENTORY (5) ---- Wheel Improved Signal Interpreter Assault Rifle Missile Launcher Makeshift Axe Peak State ------------ > --- POWER ------------ Light Nuclear Core > --- PROPULSION ------- Aluminum Leg Aluminum Leg Aluminum Leg > --- UTILITY ---------- Improved Heat Sink Medium Storage Unit Advanced Targeting Computer Hardened Light Armor Plating > --- WEAPON ----------- Pulse Rifle Missile Launcher > --- INVENTORY -------- Wheel Wheel Improved Signal Interpreter Hardened Medium Armor Plating Medium Laser Assault Rifle Assault Rifle Heavy Assault Rifle Makeshift Axe [Rating: 22] Favorites ----------- Power Ion Engine Engine Ion Engine Power Core Light Nuclear Core Propulsion Aluminum Leg Treads Light Treads Leg Aluminum Leg Wheel Wheel Utility Medium Storage Unit Device Disposable Heat Sink Storage Medium Storage Unit Processor Visual Processing Unit Protection Hardened Light Armor Plating Weapon Light Assault Rifle Energy Gun Particle Gun Ballistic Gun Light Assault Rifle Launcher Grenade Launcher Slashing Weapon Makeshift Axe Build | -11 -10 -10 -9 -8 ------- Run | Yrd Mat Min Mat Mat Slots Evolved 4 | . . . 2 2 Power 1 | . . . . 1 Propulsion 1 | . . . . 1 Utility 2 | . . . 2 . Weapon . | . . . . . Parts Attached 55 | . 6 9 22 18 Power 7 | . 1 2 1 3 Engine 5 | . 1 2 1 1 Core 2 | . . . . 2 Reactor . | . . . . . Propulsion 12 | . 1 2 6 3 Treads 2 | . . 2 . . Leg 9 | . 1 . 6 2 Wheel 1 | . . . . 1 Hover . | . . . . . Flight . | . . . . . Utility 9 | . 2 . 5 2 Device 3 | . . . 2 1 Storage 1 | . 1 . . . Processor 2 | . 1 . 1 . Hackware . | . . . . . Protection 3 | . . . 2 1 Artifact . | . . . . . Weapon 27 | . 2 5 10 10 Energy Gun 5 | . . . 2 3 Energy Cannon . | . . . . . Ballistic Gun 15 | . 1 4 5 5 Ballistic Cannon . | . . . . . Launcher 5 | . 1 1 1 2 Special Weapon . | . . . . . Impact Weapon . | . . . . . Slashing Weapon 2 | . . . 2 . Piercing Weapon . | . . . . . Special Melee Weapon . | . . . . . Unidentified Prototypes . | . . . . . Parts Lost 23 | . 2 3 5 13 Power 6 | . 1 1 1 3 Propulsion 8 | . 1 1 2 4 Utility 5 | . . . 2 3 Weapon 4 | . . 1 . 3 Highest Loss Streak 5 | . 1 2 2 5 To Critical Strikes . | . . . . . Average Slot Usage (%) 92 | . 90 99 95 69 Engine 10 | . 14 13 10 2 Treads 9 | . . 27 1 . Leg 13 | . 27 . 20 13 Device 5 | . . . 11 6 Storage 12 | . 14 14 11 9 Processor 11 | . 5 14 11 9 Protection 3 | . . . 6 5 Energy Gun 3 | . . . 5 7 Ballistic Gun 18 | . 24 27 13 9 Slashing Weapon 1 | . . . 2 . Peak Build Rating 22 | . 8 9 19 22 Average Rating 11 | . 6 8 13 16 On Entrance 8 | 6 6 8 9 14 Naked Turns 5 | . . . . 5 Heaviest Build 30 | 10 15 17 26 30 Greatest Support 40 | 20 20 40 40 30 Greatest Overweight (x) 4 | . . . 1 4 Average Overweight (x) . | . . . . . Largest Inventory Capacity 10 | . 10 10 10 10 Average Capacity 9 | . 8 10 10 9 Most Carried 10 | . 8 8 10 9 Average Carried 7 | . 7 7 7 7 Final Capacity 10 | 8 10 10 10 5 Final Carried 8 | 6 8 8 8 5 Class Distribution -------------------- 72% | Scavenger-Mutant 27% | Mutant Dominant Class ---------------- Mutant | -10/Materials Scavenger-Mutant | -10/Mines Scavenger-Mutant | -9/Materials Scavenger-Mutant | -8/Materials Resources | -11 -10 -10 -9 -8 ----------- Run | Yrd Mat Min Mat Mat Matter Collected 1137 | 200 31 343 321 242 Remotely . | . . . . . Salvage Created 1951 | . 227 348 797 579 Parts 121 | . 18 25 54 24 Haulers Intercepted 1 | . 1 . . . Recyclers Shooed 3 | . . . 3 . Parts Field Recycled . | . . . . . Retrieved Matter . | . . . . . Parts Self-Destructed . | . . . . . Prevented . | . . . . . Kills | -11 -10 -10 -9 -8 ------- Run | Yrd Mat Min Mat Mat Combat Hostiles Destroyed 54 | . 5 10 20 19 Melee 8 | . . . 8 . Guns 34 | . 2 7 12 13 AOE 12 | . 3 3 . 6 Classes Destroyed 9 | . 6 . 2 1 Worker 3 | . 1 1 1 . Hauler 1 | . 1 . . . Recycler 2 | . 1 1 . . Watcher 4 | . 2 . 2 . Swarmer 18 | . 2 6 7 3 Grunt 23 | . 3 4 5 11 Brawler 1 | . . . . 1 Duelist 2 | . . . 1 1 Sentry 10 | . . . 7 3 Best Kill Streak 7 | . 6 5 7 7 Combat Bots Only 7 | . 2 3 6 7 Max Kills in Single Turn 2 | . 2 2 1 2 Gunslinging . | . . . . . Exploded 2 | . 1 1 . 2 Melee 1 | . . . 1 . Uniques/NPCs Destroyed . | . . . . . Combat | -11 -10 -10 -9 -8 -------- Run | Yrd Mat Min Mat Mat Hostile Shots Fired 359 | . 27 80 114 138 Missed 84 | . 7 19 27 31 Damage Taken 4101 | . 407 761 1185 1748 Core 1106 | . 54 172 322 558 Absorbed by Shields . | . . . . . Core Remaining (%) 42 | 100 . 9 19 . Volleys Fired 190 | . 20 44 65 61 Largest 2 | . 2 2 2 2 Hottest 126 | . 40 40 85 126 Shots Fired 336 | . 31 77 123 105 Gun 312 | . 22 70 122 98 Cannon . | . . . . . Launcher 24 | . 9 7 1 7 Special . | . . . . . Kinetic 217 | . 22 70 79 46 Thermal 95 | . . . 43 52 Explosive 24 | . 9 7 1 7 Electromagnetic . | . . . . . Robot Hit Streak 26 | . 12 10 10 26 Robot Miss Streak 4 | . 2 4 4 2 Penetration Max . | . . . . . Secondary Targets 4 | . . 2 . 2 Max Gunslinging Chain 1 | . . 1 . 1 Shots Hit Robots 250 | . 22 51 92 85 Core Hits 117 | . 16 25 36 40 Critical Kills . | . . . . . Critical Parts Destroyed 1 | . . 1 . . Critical Strikes 9 | . . 1 5 3 Burn 4 | . . . 1 3 Destroy 1 | . . 1 . . Sever 4 | . . . 4 . Melee Attacks 29 | . . . 29 . Impact . | . . . . . Slashing 29 | . . . 29 . Piercing . | . . . . . Sneak Attacks 1 | . . . 1 . Combat Hostiles . | . . . . . Follow-up Attacks 6 | . . . 6 . Damage Inflicted 5216 | . 593 678 1551 2394 Guns 2675 | . 126 411 904 1234 Cannons . | . . . . . Explosions 1891 | . 467 264 . 1160 Melee 647 | . . . 647 . Ramming 3 | . . 3 . . Kinetic 1450 | . 126 411 497 416 Thermal 1225 | . . . 407 818 Explosive 1891 | . 467 264 . 1160 Electromagnetic . | . . . . . Impact . | . . . . . Slashing 647 | . . . 647 . Piercing . | . . . . . Highest Corruption 1 | . 1 1 . . Average Corruption 1 | . 1 1 . . Corruption Purged . | . . . . . Corruption Blocked . | . . . . . Effects 9 | . 2 7 . . Message Errors 4 | . 2 2 . . Matter Fused 1 | . . 1 . . Heat Flow Errors 2 | . . 2 . . Parts Fused 1 | . . 1 . . Data Loss (major) 1 | . . 1 . . Overload Shots . | . . . . . Overflow Damage 72 | . 22 11 30 9 Projectiles . | . . . . . Explosions 42 | . 22 11 . 9 Melee 30 | . . . 30 . Knockbacks . | . . . . . Impact . | . . . . . Kinetic . | . . . . . Secondary . | . . . . . Self-Inflicted Damage 235 | . 99 36 17 83 Shots 10 | . 4 2 1 3 Rammed 3 | . . 2 . 1 Targets Rammed 3 | . . 2 . 1 Kicked . | . . . . . Crushed . | . . . . . Highest Temperature 250 | . 25 250 198 225 Average Temperature 67 | . 10 60 76 71 Received Heat Transfer 1521 | . 144 333 261 783 Siege Activations . | . . . . . Robots Corrupted . | . . . . . Combat Hostiles . | . . . . . Parts Fried . | . . . . . Impact Corruptions . | . . . . . Robots Melted . | . . . . . Combat Hostiles . | . . . . . Parts Melted 3 | . . . 1 2 Heat Transferred 3034 | . . . 1036 1998 Parts Sabotaged . | . . . . . Parts Stolen . | . . . . . Parts Stripped . | . . . . . Power Chain Reactions . | . . . . . Alert | -11 -10 -10 -9 -8 ------- Run | Yrd Mat Min Mat Mat Peak Influence 749 | . 190 225 467 749 Initial 196 | . . 73 . 196 Average 193 | . 94 110 205 421 Maximum Alert Level 3 | . . 1 2 3 Low Security (%) 69 | . 100 99 58 7 Level 1 12 | . . . 17 31 Level 2 17 | . . . 23 56 Level 3 . | . . . . 3 Level 4 . | . . . . . Level 5 . | . . . . . High Security . | . . . . . Max Security . | . . . . . Squads Dispatched 9 | . . . 3 6 Investigation . | . . . . . Extermination . | . . . . . Reinforcement 5 | . . . 3 2 Assault 1 | . . . . 1 Garrison 3 | . . . . 3 Intercept . | . . . . . Searches Triggered . | . . . . . Construction Impeded 1 | . . . . 1 Haulers Reinforced . | . . . . . Active Scanning Responses . | . . . . . Cargo Convoy Interrupts . | . . . . . Stealth | -11 -10 -10 -9 -8 --------- Run | Yrd Mat Min Mat Mat Distress Signals 10 | . 1 . 7 2 Communications Jammed . | . . . . . Distress Signals . | . . . . . Times Spotted 82 | . 10 10 37 25 Peak Tracking Total 8 | . 5 3 7 8 Tactical Retreats 10 | . . . 8 2 Traps | -11 -10 -10 -9 -8 ------- Run | Yrd Mat Min Mat Mat Traps Triggered 1 | . 1 . . . Indirectly . | . . . . . Trap Hack Attempts . | . . . . . Triggered . | . . . . . Disarmed . | . . . . . Reprogrammed . | . . . . . Reused . | . . . . . Traps Extracted . | . . . . . Installed . | . . . . . Triggered . | . . . . . Machines | -11 -10 -10 -9 -8 ---------- Run | Yrd Mat Min Mat Mat Machines Disabled 1 | . . . 1 . Max in Single Turn 1 | . . . 1 . Machines Repaired . | . . . . . Machines Dismantled . | . . . . . Machines Sabotaged . | . . . . . Overloaded Fab Kills . | . . . . . Hacking | -11 -10 -10 -9 -8 --------- Run | Yrd Mat Min Mat Mat Machines Accessed . | . . . . . Terminals . | . . . . . Fabricators . | . . . . . Repair Stations . | . . . . . Recycling Units . | . . . . . Scanalyzers . | . . . . . Garrison Access . | . . . . . Total Hacks . | . . . . . Successful . | . . . . . Failed . | . . . . . Catastrophic . | . . . . . Database Lockouts . | . . . . . Manual . | . . . . . Terminals . | . . . . . Fabricators . | . . . . . Repair Stations . | . . . . . Recycling Units . | . . . . . Scanalyzers . | . . . . . Garrison Access . | . . . . . Terminal Hacks . | . . . . . Fabricator Hacks . | . . . . . Repair Station Hacks . | . . . . . Recycling Unit Hacks . | . . . . . Scanalyzer . | . . . . . Garrison Access Hacks . | . . . . . Unauthorized Hacks . | . . . . . Terminals . | . . . . . Fabricators . | . . . . . Repair Stations . | . . . . . Recycling Units . | . . . . . Scanalyzers . | . . . . . Garrison Access . | . . . . . Data Cores Recovered . | . . . . . Used . | . . . . . Hacking Detections . | . . . . . Full Trace Events . | . . . . . Feedback Events . | . . . . . Feedback Blocked . | . . . . . Robot Schematics Acquired . | . . . . . Robots Built . | . . . . . Authchips . | . . . . . Time . | . . . . . Total Robot Build Rating . | . . . . . Part Schematics Acquired . | . . . . . Parts Built . | . . . . . Authchips . | . . . . . Time . | . . . . . Total Part Build Rating . | . . . . . Parts Repaired . | . . . . . Time . | . . . . . Parts Recycled . | . . . . . Recycled Matter . | . . . . . Retrieved Matter . | . . . . . Retrieved Components . | . . . . . Parts Scanalyzed . | . . . . . Part Schematics Acquired . | . . . . . Parts Damaged . | . . . . . Bothacking | -11 -10 -10 -9 -8 ------------ Run | Yrd Mat Min Mat Mat Used RIF Installer . | . . . . . Robots Hacked . | . . . . . Non-combat . | . . . . . Combat . | . . . . . Robot Hacks Applied . | . . . . . Relay Couplers Released . | . . . . . Fabnet Peak Effective % . | . . . . . Robots Rewired . | . . . . . Allies Hacked . | . . . . . Hacks Repelled . | . . . . . Allies | -11 -10 -10 -9 -8 -------- Run | Yrd Mat Min Mat Mat Total Allies . | . . . . . Largest Group . | . . . . . Highest-Rated Group . | . . . . . Highest-Rated Ally . | . . . . . Total Orders . | . . . . . Ally Attacks . | . . . . . Total Damage . | . . . . . Kills . | . . . . . Allies Corrupted . | . . . . . Allies Melted . | . . . . . Intel | -11 -10 -10 -9 -8 ------- Run | Yrd Mat Min Mat Mat Robot Analysis Total . | . . . . . Derelict Logs Recovered 2 | . . 2 . . Drone Launches . | . . . . . Drone Recoveries . | . . . . . Exploration | -11 -10 -10 -9 -8 ------------- Run | Yrd Mat Min Mat Mat Turns Passed 2967 | . 351 987 1172 457 Spaces Moved 1504 | 1 242 523 564 174 Core 13 | . . . . 13 Treads 561 | . . 523 38 . Legs 889 | 1 242 . 526 120 Wheels 41 | . . . . 41 Hover . | . . . . . Flight . | . . . . . Fastest Speed 50 | 120 120 160 120 50 Average Speed 145 | 120 120 160 149 127 Slowest Speed 260 | 120 120 160 190 260 Overloaded Moves . | . . . . . Propulsion Burnouts . | . . . . . Robots Hopped . | . . . . . Cave-ins Triggered . | . . . . . Exploration Rate (%) 47 | 2 59 98 57 23 Regions Visited 4 Branch Regions 1 Pre-discovered Areas 1 | . . 1 . . Known Exits Taken . | . . . . . Unknown Exits Taken 4 | 1 1 1 1 . Scrap Searched 3 | . . 3 . . Spaces Dug . | . . . . . Terrain Destroyed 171 | . 63 41 11 56 Melee . | . . . . . Projectile . | . . . . . AOE 171 | . 63 41 11 56 Terrain Rammed . | . . . . . Walls Destroyed . | . . . . . Machines Disabled . | . . . . . Actions | -11 -10 -10 -9 -8 --------- Run | Yrd Mat Min Mat Mat Total 1925 | . 274 609 744 298 Wait 118 | . 3 20 60 35 Move 1500 | . 241 522 563 174 Hop . | . . . . . Pick Up 16 | . 3 6 4 3 Fast Attach 18 | . 2 . 11 5 Attach 12 | . 1 3 3 5 Detach 1 | . . . 1 . Swap 25 | . 3 6 8 8 Drop 21 | . 1 6 8 6 Fire 190 | . 20 44 65 61 Melee 21 | . . . 21 . Ram 1 | . . . . 1 Kick . | . . . . . Crush 2 | . . 2 . . Escape Stasis . | . . . . . Rewire . | . . . . . Trap . | . . . . . Miscellaneous . | . . . . . Route ------- -11/Scrapyard -10/Materials (discovered 2 exits: [*Mat] / [*Min]) -10/Mines (discovered 2 exits: [*Mat x2]) -9/Materials (discovered 4 exits: [*Mat x2] / Min x2) -8/Materials History --------- Turn | Location | Event 1 | -11/Scrapyard | Discovered new exit (range 0) 1 | -11/Scrapyard | Entered Materials 231 | -10/Materials | Discovered new exit (range 6) 307 | -10/Materials | Discovered new exit (range 4) 311 | -10/Materials | Build established: Mutant 352 | -10/Materials | Entered Mines 582 | -10/Mines | Discovered new exit (range 9) 627 | -10/Mines | Learned location of Storage (-7) 657 | -10/Mines | Build established: Scavenger-Mutant 663 | -10/Mines | Discovered new exit (range 7) 734 | -10/Mines | A weapon hastily lodged in a ceiling crevice suddenly fell to the ground 744 | -10/Mines | Core integrity fell below 50% 891 | -10/Mines | Core integrity fell below 20% 1000 | -10/Mines | Received a Rocket Launcher from a helpful Derelict 1339 | -10/Mines | Entered Materials 1339 | -9/Materials | Evolved 2 slots: Utility x2 1340 | -9/Materials | Identified exit to Mines 1704 | -9/Materials | Discovered new exit (range 9) 2049 | -9/Materials | Core integrity fell below 50% 2290 | -9/Materials | Discovered new exit (range 16) 2416 | -9/Materials | Core integrity fell below 20% 2511 | -9/Materials | Entered another Materials area 2511 | -8/Materials | Evolved 2 slots: Power x1, Propulsion x1 2721 | -8/Materials | Garrison activated, responded to threat 2735 | -8/Materials | Lost 3 parts (2n1u) 2751 | -8/Materials | Destroyed 7 combat bots 2874 | -8/Materials | Lost 3 parts (1p2u) 2906 | -8/Materials | Core integrity fell below 50% 2911 | -8/Materials | First assault squad dispatched 2955 | -8/Materials | Core integrity fell below 20% 2963 | -8/Materials | Released all parts (2) 2968 | -8/Materials | Destroyed by Y-45 Defender with Beam Rifle Last Messages --------------- 02928_ K-01 Serf cleans the Terminal. 02928_ R-06 Scavenger collects Flight Unit. 02929_ Lgt. Ion Engine destroyed. 02930_ K-01 Serf collects debris. 02931_ K-01 Serf cleans the Terminal. 02931_ R-06 Scavenger collects Lgt. Assault Rifle. 02936_ Y-45 Defender heat spikes uncontrollably. 02937_ K-01 Serf cleans the Terminal. 02941_ Y-45 Defender heat damages Heat Sink. 02942_ Pulse Rifle destroyed. 02944_ K-01 Serf cleans the Terminal. 02945_ Y-45 Defender heat spikes uncontrollably. 02954_ Acquired 11 matter. 02954_ Pulse Rifle destroyed. 02956_ Slammed into Y-45 Defender. 02957_ Critical hit (Burn: +37). 02962_ Dropped Med. Laser. 02963_ Released Adv. Targeting Computer. 02963_ Released Med. Storage Unit. 02965_ Critical hit (Burn: +37). Map ----- +----------------------------------------------------+ | ??????????????????????????????????????????????? | | ??????????????????????????????????????????????? | | ??????????????????????????????????????????????? | | ?? ???????????????????????????????????????????? | | ?? ???????????????????????????????????????????? | | ?? ???????????????????????????????????????????? | | ?# ???????????????????????????????????????????? | | ?# ???????????????????????????????????????????? | | ?# #????????????????? ??????????????????????? | | ?# #????????????????? ??????????????????????? | | ?# #????????????????? #????????????H????????? | | ? #????????????????# #?????????????????????? | | ?# #????????????????# #?????????????????????? | | ?# ###??????????????# #?????????????????????? | | ## # ###????????????# #?????????????????????? | | #%# ##???????????# #?????????????????????? | | ##+######??########?# #?????????????????????? | | # % #??# #?# #?????????????????????? | | # ##??#! "" #?# #?????????????????????? | | # ###?# T" #?# #?????????????????????? | | # # #?# "" #?# #?????????????????????? | | # ###?# [#?# #?????????????????????? | | # % #???# [ #?# #?????????????????????? | | ###/#############/### #######+### #?????? | | % k *[Y% u og #?????? | | !=Y @ ug +?????? | | % w #?????? | | ###/###########################+### #?????? | | # [% T #??? #???????????????????????????????? | | # #????? #???????????????????????????????? | | # """ #??????????????????????????????????????? | | # """ #??????????????????????????????????????? | | # """ #??????????????????????????????????????? | | # #??????????????????????????????????????? | | ########??????????????????????????????????????? | | ??????????????????????????????????????????????? | | ??????????????????????????????????????????????? | | ??????????????????????????????????????????????? | | ??????????????????????????????????????????????? | | ??????????????????????????????????????????????? | | ??????????????????????????????????????????????? | | ??????????????????????????????????????????????? | | ??????????????????????????????????????????????? | | ??????????????????????????????????????????????? | | ??????????????????????????????????????????????? | | ??????????????????????????????????????????????? | | ??????????????????????????????????????????????? | | ??????????????????????????????????????????????? | | ??????????????????????????????????????????????? | | ??????????????????????????????????????????????? | +----------------------------------------------------+ Best States ------------- Heat Dissipation 45 Coolant Potential 50 Energy Generation 19 Energy Capacity 310 Matter Stores 300 Matter Capacity 300 Sight Range 18 Terrain Scan Density 10 Armor Coverage 225 Evasion (%) 55 Targeting Accuracy 8 Recoil Reduction 2 Item Schematics ----------------- None Robot Schematics ------------------ None Fabricated ------------ Nothing Alien Tech Used ----------------- None Achievements -------------- None Challenges ------------ None Game ------ Seed FluxTimingActivator Manual? 0 Play Time 00:15:50 Cumulative 129.3 hours Start 2024.09.11 @ 15:15:23 End 2024.09.11 @ 15:31:05 Sessions 1 Manual Loads 0 Difficulty Rogue Special Mode None Game No. 210 Rogue 209 Adventurer 1 Explorer 0 Win Type - Total 1 Types 1/0/0/0/0/0/0/0/0 Lore% 66 Gallery% 67 Achievement% 50 Wizard Run 0 Options --------- Layout 1 ASCII 0 Keyboard 0 Movement Mouse Keybinds 0 Fullscreen 2 Font 20/SmallcapsGlow Map View 54x42 Zoom Use 0% Tactical HUD 1 Map Filters NONE Filters NONE Steam 0 RUN: c70db072-4ca4-46b5-b6b8-65a15b4a37d5